bitfinex-derivatives/quotes_SOLF0:USTF0_20260210
["timestamp","ask_amount","ask_price","bid_price","bid_amount"]
[1770737166307,3.77224779,84.178,84.119,3.71430198]
[1770737167311,3.77224779,84.178,84.091,3.71430198]
[1770737167615,3.77224779,84.169,84.091,3.71430198]
[1770737167815,3.77224779,84.169,84.111,3.71430198]
[1770737169113,3.77224779,84.165,84.094,3.71430198]
[1770737170712,10.7015,84.158,84.11,10.7075]
[1770737171022,3.77224779,84.157,84.094,3.71430198]
[1770737171224,9.6887202,84.17,84.07,31.1140202]
[1770737171225,3.77224779,84.147,84.077,3.71430198]
[1770737171522,9.6887202,84.17,84.077,3.71430198]
[1770737171523,94.86,84.159,84.077,3.71430198]
[1770737171727,3.77224779,84.164,84.077,3.71430198]
[1770737172217,3.77224779,84.164,84.104,3.71430198]
[1770737172420,9.6887202,84.17,84.104,3.71430198]
[1770737172619,10.98018594,84.186,84.11,9.6887202]
[1770737172822,3.77224779,84.201,84.111,3.71430198]
[1770737173021,3.77224779,84.199,84.141,10.7037]
[1770737173519,3.77224779,84.199,84.15,10.7025]
[1770737173913,3.77224779,84.195,84.13,3.71430198]
[1770737174113,3.77224779,84.195,84.093,21.4194]
[1770737174114,3.77224779,84.189,84.129,10.7052]
[1770737174316,3.77224779,84.189,84.112,3.71430198]
[1770737174520,99.22,84.203,84.114,3.71430198]
[1770737174721,3.77224779,84.189,84.114,3.71430198]
[1770737175323,3.77224779,84.189,84.133,10.7046]
[1770737176421,3.77224779,84.187,84.114,3.71430198]
[1770737177820,3.77224779,84.187,84.149,10.7026]
[1770737178023,3.77224779,84.187,84.134,3.71430198]
[1770737178217,3.77224779,84.187,84.113,3.71430198]
[1770737178721,3.77224779,84.187,84.141,10.7036]
[1770737179719,3.77224779,84.187,84.129,3.71430198]
[1770737179920,99.22,84.203,84.129,3.71430198]
[1770737180121,3.74418258,84.202,84.129,3.71430198]
[1770737180721,9.6887202,84.21,84.171,10.6998]
[1770737181422,3.74418258,84.219,84.179,10.6988]
[1770737182818,3.74418258,84.219,84.162,3.74360915]
[1770737182819,9.6887202,84.23,84.162,3.74360915]
[1770737183227,3.69835201,84.229,84.162,3.74360915]
[1770737183826,3.69835201,84.229,84.187,10.6977]
[1770737184531,3.69835201,84.229,84.178,10.6989]
[1770737187532,3.69835201,84.229,84.185,10.698]
[1770737189334,3.69835201,84.229,84.162,3.74360915]
[1770737189533,3.69835201,84.227,84.162,3.74360915]
[1770737190233,100.52,84.228,84.162,3.74360915]
[1770737190234,3.69835201,84.217,84.162,10.701]
[1770737190534,3.69835201,84.209,84.146,3.74360915]
[1770737191737,3.69835201,84.189,84.142,10.7035]
[1770737192230,3.69835201,84.189,84.124,3.74360915]
[1770737192231,3.69835201,84.189,84.132,10.7048]
[1770737192438,3.69835201,84.189,84.124,3.74360915]
[1770737193338,3.69835201,84.189,84.146,10.703]
[1770737193941,3.69835201,84.189,84.09,9.6887202]
[1770737193942,3.69835201,84.179,84.108,3.74360915]
[1770737194633,11.07541643,84.197,84.129,3.74360915]
[1770737194634,3.69835201,84.197,84.129,3.74360915]
[1770737195035,3.69835201,84.234,84.179,3.74360915]
[1770737195446,3.69835201,84.254,84.179,3.74360915]
[1770737196040,3.69835201,84.253,84.179,3.74360915]
[1770737196436,3.69835201,84.271,84.227,10.6927]
[1770737196836,9.6887202,84.28,84.212,3.74360915]
[1770737197037,3.69835201,84.286,84.212,3.74360915]
[1770737197431,3.69835201,84.279,84.212,3.74360915]
[1770737198542,3.69835201,84.279,84.224,10.6931]
[1770737198740,3.69835201,84.279,84.212,3.74360915]
[1770737199236,3.69835201,84.3,84.233,3.74360915]
[1770737199739,3.69835201,84.3,84.25,10.6897]
[1770737200335,3.69835201,84.289,84.24,10.691]
[1770737201034,11.07541643,84.319,84.255,3.74360915]
[1770737201241,9.6887202,84.34,84.255,3.74360915]
[1770737201547,21.61915582,84.38,84.231,166.3233]
[1770737201548,9.6887202,84.3,84.231,3.74360915]
[1770737201840,9.6887202,84.3,84.252,10.6895]
[1770737202136,10.6788,84.337,84.252,10.6895]
[1770737202338,94.8,84.339,84.21,9.6887202]
[1770737202339,94.8,84.339,84.253,3.74360915]
[1770737202534,9.6887202,84.33,84.253,3.74360915]
[1770737202732,9.6887202,84.33,84.276,10.6865]
[1770737203243,3.69835201,84.337,84.27,3.74360915]
[1770737203642,9.6887202,84.34,84.27,3.74360915]
[1770737204037,9.6887202,84.34,84.281,3.74360915]
[1770737204438,3.69835201,84.357,84.281,3.74360915]
[1770737204639,3.69835201,84.357,84.3,10.6834]
[1770737205135,94.76,84.37,84.301,3.74360915]
[1770737205537,3.69835201,84.359,84.305,10.6828]
[1770737205936,104.4487202,84.37,84.306,3.74360915]
[1770737206134,3.69835201,84.369,84.306,3.74360915]
[1770737207734,3.69835201,84.369,84.308,10.6825]
[1770737208934,104.4487202,84.37,84.27,9.6887202]
[1770737208935,9.6887202,84.37,84.313,3.74360915]
[1770737209135,3.69835201,84.426,84.331,3.74360915]
[1770737209539,100.98,84.451,84.33,9.6887202]
[1770737209540,13.38707221,84.42,84.356,10.6764]
[1770737209736,4.444e-05,84.437,84.371,3.74360915]
[1770737209930,3.94473131,84.469,84.403,10.6704]
[1770737210132,3.94473131,84.469,84.371,3.74360915]
[1770737210342,3.94473131,84.469,84.37,9.6887202]
[1770737210343,3.94473131,84.479,84.391,3.87631838]
[1770737210534,3.94473131,84.479,84.417,10.6686]
[1770737210736,3.94473131,84.497,84.411,3.87631838]
[1770737211136,3.94473131,84.497,84.41,9.6887202]
[1770737211137,3.94473131,84.497,84.429,3.87631838]
[1770737211744,3.94473131,84.479,84.417,10.6686]
[1770737212141,3.94473131,84.479,84.418,3.87631838]
[1770737212356,3.94473131,84.479,84.425,10.6677]
[1770737212735,9.6887202,84.47,84.412,10.6692]
[1770737212941,3.94473131,84.469,84.412,10.6692]
[1770737213343,100.94,84.48,84.413,3.87631838]
[1770737213546,3.94473131,84.479,84.422,3.87631838]
[1770737213741,3.94473131,84.479,84.374,3.87631838]
[1770737213937,3.94473131,84.459,84.384,10.6728]
[1770737214142,3.94473131,84.439,84.374,3.87631838]
[1770737214342,3.94473131,84.419,84.349,3.87631838]
[1770737215046,3.94473131,84.419,84.36,10.6758]
[1770737215448,9.6887202,84.4,84.349,3.87631838]
[1770737215647,3.94473131,84.419,84.349,3.87631838]
[1770737216848,9.6887202,84.44,84.351,3.87631838]
[1770737217242,3.94473131,84.459,84.396,10.6713]
[1770737217444,165.7434,84.527,84.396,10.6713]
[1770737217445,3.94473131,84.479,84.396,3.87631838]
[1770737217853,13.63345151,84.46,84.397,10.6712]
[1770737218752,3.94473131,84.459,84.384,10.6727]
[1770737219049,3.94473131,84.459,84.317,166.1531]
[1770737219050,3.94473131,84.439,84.356,3.87631838]
[1770737219350,9.6887202,84.4,84.336,3.87631838]
[1770737219554,3.94473131,84.419,84.336,3.87631838]
[1770737220144,3.94473131,84.419,84.345,10.6777]
[1770737220549,3.94473131,84.419,84.336,3.87631838]
[1770737220852,13.63345151,84.46,84.368,3.87631838]
[1770737221056,13.63345151,84.46,84.347,166.094]
[1770737221057,13.63345151,84.46,84.381,3.87631838]
[1770737221243,3.94473131,84.459,84.381,3.87631838]
[1770737221854,9.6887202,84.44,84.381,3.87631838]
[1770737222154,3.94473131,84.459,84.381,3.87631838]
[1770737222352,3.94473131,84.459,84.398,3.87631838]
[1770737223151,3.94473131,84.459,84.404,10.6703]
[1770737223651,9.6887202,84.45,84.398,3.87631838]
[1770737223958,9.6887202,84.45,84.377,3.87631838]
[1770737224146,9.6887202,84.45,84.393,10.6716]
[1770737224347,3.94473131,84.449,84.377,3.87631838]
[1770737224548,3.94473131,84.449,84.299,166.1897]
[1770737224549,9.6887202,84.43,84.357,3.87631838]
[1770737224852,9.6887202,84.43,84.372,10.6743]
[1770737225647,3.94473131,84.429,84.372,10.6743]
[1770737226359,9.6887202,84.41,84.336,3.87631838]
[1770737226547,3.94473131,84.409,84.336,3.87631838]
[1770737227150,9.63684024,84.41,84.336,3.87631838]
[1770737227366,101.02,84.429,84.336,3.87631838]
[1770737227660,3.94473131,84.487,84.336,3.87631838]
[1770737227852,9.63684024,84.42,84.336,3.87631838]
[1770737228051,9.63684024,84.42,84.369,10.6747]
[1770737228253,9.63684024,84.42,84.336,3.87631838]
[1770737228557,9.63684024,84.42,84.37,10.6746]
[1770737228764,3.94473131,84.419,84.336,3.87631838]
[1770737228962,9.63684024,84.4,84.336,3.87631838]
[1770737229751,3.94473131,84.399,84.315,3.87631838]
[1770737229949,3.94473131,84.399,84.338,10.6786]
[1770737230156,3.94473131,84.399,84.315,3.87631838]
[1770737230456,3.94473131,84.399,84.347,10.6775]
[1770737231655,3.94473131,84.399,84.337,10.6787]
[1770737232050,10.6712,84.398,84.315,3.87631838]
[1770737232258,9.63684024,84.38,84.315,3.87631838]
[1770737232560,3.94473131,84.379,84.315,3.87631838]
[1770737232763,3.94473131,84.379,84.316,10.6814]
[1770737233063,3.94473131,84.379,84.315,3.87631838]
[1770737233452,3.94473131,84.379,84.285,3.87631838]
[1770737234152,9.63684024,84.42,84.285,3.87631838]
[1770737234153,3.94473131,84.359,84.285,3.87631838]
[1770737234666,9.64937194,84.34,84.285,3.87631838]
[1770737236667,3.94473131,84.359,84.285,3.87631838]
[1770737236962,3.94473131,84.358,84.293,10.6843]
[1770737237752,101.16,84.368,84.285,3.87631838]
[1770737237951,3.94473131,84.367,84.285,3.87631838]
[1770737238565,101.16,84.368,84.285,3.87631838]
[1770737238566,3.94473131,84.349,84.285,3.87631838]
[1770737239064,3.94473131,84.349,84.26,9.64937194]
[1770737239261,3.94473131,84.335,84.276,10.6865]
[1770737239662,3.94473131,84.369,84.295,3.87631838]
[1770737239863,3.99727144,84.359,84.295,3.87631838]
[1770737240062,3.99727144,84.359,84.274,3.71087209]
[1770737240266,3.99727144,84.339,84.286,10.6852]
[1770737240963,3.99727144,84.339,84.294,10.6842]
[1770737241154,3.99727144,84.339,84.274,3.71087209]
[1770737241360,101.2,84.387,84.24,9.64937194]
[1770737241361,3.99727144,84.319,84.254,3.71087209]
[1770737241563,9.64937194,84.3,84.236,3.71087209]
[1770737241762,3.85738381,84.299,84.236,3.71087209]
[1770737242067,3.85738381,84.299,84.243,10.6907]
[1770737242458,3.85738381,84.296,84.236,3.71087209]
[1770737242670,3.85738381,84.296,84.215,3.79764945]
[1770737242863,9.64937194,84.28,84.215,3.79764945]
[1770737243260,3.85738381,84.279,84.228,10.6925]
[1770737243471,3.85738381,84.279,84.215,3.79764945]
[1770737243768,3.85738381,84.279,84.203,3.79764945]
[1770737244863,9.64937194,84.26,84.203,3.79764945]
[1770737245270,3.85738381,84.259,84.202,10.6959]
[1770737245571,3.85738381,84.259,84.184,3.79764945]
[1770737245767,3.85738381,84.259,84.21,10.6949]
[1770737246069,3.85738381,84.259,84.184,3.79764945]
[1770737246460,3.85738381,84.259,84.2,10.6961]
[1770737246667,3.85738381,84.259,84.184,3.79764945]
[1770737247067,3.85738381,84.258,84.189,10.6975]
[1770737247263,3.85738381,84.239,84.189,10.6975]
[1770737247572,3.85738381,84.258,84.184,3.79764945]
[1770737247963,3.85738381,84.258,84.196,10.6966]
[1770737248171,3.85738381,84.258,84.184,3.79764945]
[1770737248369,3.85738381,84.239,84.162,3.79764945]
[1770737248962,3.85738381,84.239,84.184,10.6982]
[1770737249161,3.85738381,84.239,84.162,3.79764945]
[1770737249360,13.50675575,84.26,84.162,3.79764945]
[1770737249561,3.85738381,84.259,84.191,10.6973]
[1770737249967,3.85738381,84.259,84.181,3.79764945]
[1770737250168,3.85738381,84.259,84.209,10.6949]
[1770737250471,3.85738381,84.259,84.2,3.79764945]
[1770737251565,3.85738381,84.279,84.2,3.79764945]
[1770737252573,3.85738381,84.279,84.218,10.6938]
[1770737253573,3.85738381,84.279,84.229,10.6925]
[1770737253767,9.64937194,84.28,84.218,3.79764945]
[1770737253973,311.44333978,84.332,84.218,3.79764945]
[1770737253974,3.85738381,84.299,84.218,3.79764945]
[1770737254572,3.85738381,84.299,84.249,10.6899]
[1770737254775,3.85738381,84.299,84.236,3.79764945]
[1770737254972,3.85738381,84.299,84.256,10.689]
[1770737255170,9.64937194,84.3,84.256,10.689]
[1770737255475,10.682,84.313,84.236,3.79764945]
[1770737255476,3.85738381,84.314,84.245,10.6904]
[1770737255671,9.64937194,84.32,84.236,3.79764945]
[1770737255867,3.85738381,84.319,84.236,3.79764945]
[1770737256067,3.85738381,84.319,84.268,10.6875]
[1770737256274,10.6792,84.334,84.254,3.79764945]
[1770737256570,3.85738381,84.339,84.254,3.79764945]
[1770737256971,3.85738381,84.339,84.284,10.6855]
[1770737257174,3.85738381,84.339,84.272,3.79764945]
[1770737257977,3.85738381,84.339,84.293,10.6843]
[1770737258278,3.85738381,84.339,84.272,3.79764945]
[1770737258769,3.85738381,84.359,84.303,10.683]
[1770737259471,3.85738381,84.359,84.25,9.64937194]
[1770737259472,3.85738381,84.359,84.271,3.79764945]
[1770737260277,3.85738381,84.358,84.271,3.79764945]
[1770737260475,3.85738381,84.339,84.271,3.79764945]
[1770737260869,3.85738381,84.328,84.264,10.688]
[1770737261065,3.85738381,84.328,84.252,3.79764945]
[1770737262076,9.64937194,84.34,84.252,3.79764945]
[1770737262275,9.64937194,84.36,84.271,3.79764945]
[1770737262475,3.85738381,84.359,84.271,3.79764945]
[1770737262781,3.85738381,84.359,84.318,10.6811]
[1770737263280,3.85738381,84.359,84.317,10.6812]
[1770737263479,3.85738381,84.359,84.297,3.79764945]
[1770737263778,3.85738381,84.359,84.271,3.79764945]
[1770737264280,3.85738381,84.339,84.278,10.6862]
[1770737264882,3.85738381,84.335,84.271,3.79764945]
[1770737266579,3.85738381,84.335,84.279,10.6861]
[1770737266782,3.85738381,84.385,84.281,3.79764945]
[1770737266972,3.85738381,84.385,84.301,3.79764945]
[1770737267171,3.85738381,84.409,84.334,3.79764945]
[1770737267774,3.85738381,84.398,84.334,3.79764945]
[1770737268179,9.64937194,84.41,84.334,3.79764945]
[1770737268479,9.64937194,84.41,84.36,10.6758]
[1770737269377,13.50675575,84.43,84.352,3.79764945]
[1770737269777,3.85738381,84.429,84.352,3.79764945]
[1770737270485,3.85738381,84.429,84.375,10.6739]
[1770737271782,3.85738381,84.429,84.352,3.79764945]
[1770737271973,9.64937194,84.43,84.352,3.79764945]
[1770737272181,3.73739121,84.451,84.384,3.77050281]
[1770737272975,3.73739121,84.451,84.4,10.6708]
[1770737273787,3.73739121,84.439,84.361,3.77050281]
[1770737274182,3.73739121,84.439,84.363,3.77050281]
[1770737274781,3.73739121,84.419,84.363,3.77050281]
[1770737275378,101.08,84.438,84.363,3.77050281]
[1770737275585,3.73739121,84.439,84.363,3.77050281]
[1770737276388,3.73739121,84.439,84.376,10.6738]
[1770737276775,3.73739121,84.439,84.377,3.77050281]
[1770737277084,9.64937194,84.44,84.382,3.77050281]
[1770737277687,101.08,84.456,84.389,10.6722]
[1770737277876,3.73739121,84.455,84.389,10.6722]
[1770737278083,9.64937194,84.44,84.382,3.77050281]
[1770737278386,9.64937194,84.44,84.35,9.64937194]
[1770737278387,3.73739121,84.439,84.368,10.6748]
[1770737279176,3.73739121,84.437,84.368,10.6748]
[1770737280087,3.73739121,84.419,84.358,10.6761]
[1770737280482,9.64937194,84.42,84.35,3.77050281]
[1770737281779,13.38676315,84.42,84.357,14.44670281]
[1770737282187,3.73739121,84.419,84.321,3.77050281]
[1770737282489,3.73739121,84.408,84.321,3.77050281]
[1770737282689,201.512,84.456,84.321,3.77050281]
[1770737282690,3.73739121,84.399,84.321,3.77050281]
[1770737283790,3.73739121,84.397,84.336,10.6789]
[1770737284179,3.73739121,84.397,84.321,3.77050281]
[1770737284384,9.64937194,84.38,84.321,3.77050281]
[1770737284585,9.64937194,84.38,84.326,10.6801]
[1770737285189,3.73739121,84.378,84.301,3.77050281]
[1770737285990,9.64937194,84.37,84.301,3.77050281]
[1770737286791,9.64937194,84.37,84.32,10.6809]
[1770737286988,9.64527884,84.37,84.32,10.6809]
[1770737287988,9.64527884,84.39,84.318,3.77050281]
[1770737288295,9.64527884,84.37,84.281,3.77050281]
[1770737288495,13.38267005,84.37,84.306,3.77050281]
[1770737288793,3.73739121,84.369,84.306,3.77050281]
[1770737289494,3.73739121,84.369,84.281,3.77050281]
[1770737289691,3.73739121,84.349,84.281,3.77050281]
[1770737290092,9.64527884,84.33,84.281,3.77050281]
[1770737290295,9.64527884,84.33,84.283,10.6856]
[1770737290496,3.73739121,84.349,84.283,10.6856]
[1770737291092,9.64527884,84.33,84.283,10.6856]
[1770737291492,9.64527884,84.33,84.261,3.77050281]
[1770737291493,9.64527884,84.33,84.273,10.6869]
[1770737292695,3.73739121,84.329,84.28,10.6859]
[1770737293993,9.64527884,84.34,84.287,10.6851]
[1770737294200,9.64527884,84.34,84.288,3.77050281]
[1770737294596,3.73739121,84.365,84.311,10.6821]
[1770737294907,3.73739121,84.349,84.271,3.77050281]
[1770737295101,3.73739121,84.346,84.288,10.6849]
[1770737295400,3.73739121,84.346,84.289,3.77050281]
[1770737295903,9.64527884,84.35,84.289,3.77050281]
[1770737296199,10.6773,84.349,84.291,10.6845]
[1770737296400,3.73739121,84.348,84.289,3.77050281]
[1770737296794,9.64527884,84.33,84.271,10.6871]
[1770737297103,9.64527884,84.33,84.27,3.77050281]
[1770737297304,3.73739121,84.333,84.278,10.6862]
[1770737297493,10.6792,84.334,84.278,10.6862]
[1770737297494,3.73739121,84.329,84.278,10.6862]
[1770737298302,9.64527884,84.29,84.231,3.77050281]
[1770737298600,9.64527884,84.29,84.185,21.3962]
[1770737298601,9.64527884,84.27,84.191,3.77050281]
[1770737298801,35.63,84.332,84.19,9.64527884]
[1770737298802,3.73739121,84.309,84.216,3.77050281]
[1770737299005,9.64527884,84.3,84.216,3.77050281]
[1770737299401,3.73739121,84.309,84.239,3.77050281]
[1770737299806,101.0,84.316,84.239,3.77050281]
[1770737300100,101.0,84.316,84.23,9.64527884]
[1770737300101,101.0,84.316,84.262,3.93114515]
[1770737300501,9.64527884,84.32,84.262,3.93114515]
[1770737301007,10.6811,84.319,84.268,10.6875]
[1770737301803,3.72928348,84.31,84.243,4.07934648]
[1770737302006,3.72928348,84.299,84.223,4.07934648]
[1770737303108,9.64527884,84.28,84.223,4.07934648]
[1770737303511,9.64527884,84.28,84.226,10.6929]
[1770737305813,9.66522154,84.29,84.226,10.6929]
[1770737306403,13.39450502,84.29,84.226,10.6929]
[1770737306603,3.72928348,84.289,84.226,10.6929]
[1770737307311,9.66522154,84.29,84.233,10.6919]
[1770737307312,3.72928348,84.283,84.233,10.6919]
[1770737311219,3.72928348,84.269,84.201,4.07934648]
[1770737311411,3.72928348,84.269,84.182,4.07934648]
[1770737311719,9.66522154,84.29,84.182,4.07934648]
[1770737311720,3.72928348,84.249,84.182,4.07934648]
[1770737312114,3.72928348,84.229,84.162,4.07934648]
[1770737312616,3.72928348,84.229,84.175,10.6993]
[1770737312915,3.72928348,84.229,84.175,14.77864648]
[1770737314122,20.35512154,84.25,84.187,10.6978]
[1770737314423,3.72928348,84.249,84.187,10.6978]
[1770737315021,3.72928348,84.246,84.178,10.6989]
[1770737315322,3.72928348,84.246,84.175,4.07934648]
[1770737315916,3.72928348,84.229,84.157,4.07934648]
[1770737316520,3.72928348,84.229,84.167,10.7002]
[1770737316725,3.72928348,84.229,84.157,4.07934648]
[1770737317220,3.72928348,84.228,84.157,4.07934648]
[1770737317428,9.66522154,84.21,84.157,4.07934648]
[1770737317621,3.72928348,84.209,84.138,4.07934648]
[1770737319424,3.72928348,84.209,84.149,4.07934648]
[1770737319926,9.66522154,84.21,84.149,4.07934648]
[1770737320122,101.0,84.217,84.149,4.07934648]
[1770737320723,101.0,84.217,84.165,10.7005]
[1770737321023,3.72928348,84.209,84.149,4.07934648]
[1770737321618,3.72928348,84.209,84.152,10.7022]
[1770737321816,3.72928348,84.209,84.121,4.07934648]
[1770737322927,3.72928348,84.209,84.12,9.66522154]
[1770737322928,3.72928348,84.209,84.162,10.7009]
[1770737323127,101.0,84.217,84.162,14.78024648]
[1770737323324,101.0,84.217,84.162,4.07934648]
[1770737323724,101.0,84.217,84.169,10.7]
[1770737324224,3.72928348,84.216,84.16,10.7012]
[1770737324426,9.66522154,84.21,84.16,10.7012]
[1770737324730,101.0,84.217,84.161,4.07934648]
[1770737325732,177.10029053,84.287,84.161,4.07934648]
[1770737325733,9.66522154,84.25,84.161,4.07934648]
[1770737325937,3.72928348,84.249,84.161,4.07934648]
[1770737327631,3.72928348,84.229,84.161,4.07934648]
[1770737328429,3.72928348,84.229,84.176,10.6992]
[1770737328935,3.72928348,84.227,84.168,10.7001]
[1770737329128,3.72928348,84.227,84.161,4.07934648]
[1770737329544,3.72928348,84.246,84.192,10.6971]
[1770737330031,3.72928348,84.246,84.179,4.07934648]
[1770737330631,3.87716714,84.229,84.176,10.6991]
[1770737330839,3.87716714,84.229,84.162,4.06778071]
[1770737331027,3.87716714,84.229,84.141,4.06778071]
[1770737331226,3.87716714,84.208,84.153,10.7021]
[1770737331640,3.87716714,84.208,84.141,4.06778071]
[1770737332134,3.87716714,84.208,84.161,10.701]
[1770737332925,3.87716714,84.208,84.168,10.7002]
[1770737333139,3.87716714,84.208,84.12,9.66522154]
[1770737333140,98.65716714,84.221,84.157,4.06778071]
[1770737333333,3.87716714,84.22,84.157,4.06778071]
[1770737333529,9.66522154,84.21,84.157,4.06778071]
[1770737334035,3.87716714,84.22,84.157,4.06778071]
[1770737334346,9.66522154,84.21,84.157,4.06778071]
[1770737335532,3.87716714,84.217,84.172,10.6997]
[1770737335732,3.87716714,84.217,84.157,4.06778071]
[1770737336036,3.87716714,84.209,84.157,4.06778071]
[1770737336540,3.87716714,84.209,84.161,10.701]
[1770737337039,3.87716714,84.208,84.151,10.7023]
[1770737337629,3.87716714,84.189,84.122,4.06778071]
[1770737338943,3.87716714,84.189,84.129,10.7052]
[1770737339742,9.66522154,84.19,84.095,21.419]
[1770737339743,3.87716714,84.176,84.121,10.7061]
[1770737339936,3.87716714,84.169,84.104,4.06778071]
[1770737340331,14.57736714,84.169,84.104,4.06778071]
[1770737340534,3.87716714,84.188,84.104,4.06778071]
[1770737340842,3.87716714,84.207,84.128,4.06778071]
[1770737341050,3.87716714,84.225,84.131,4.06778071]
[1770737341346,3.87716714,84.198,84.131,4.06778071]
[1770737341537,9.66522154,84.2,84.131,4.06778071]
[1770737341734,3.87716714,84.199,84.131,4.06778071]
[1770737342042,9.66522154,84.21,84.131,4.06778071]
[1770737342243,3.87716714,84.209,84.131,4.06778071]
[1770737343330,3.87716714,84.209,84.158,10.7014]
[1770737345836,3.87716714,84.209,84.151,10.7024]
[1770737346352,3.87716714,84.189,84.133,10.7046]
[1770737346847,3.87716714,84.189,84.1,9.66522154]
[1770737346848,9.66522154,84.17,84.111,4.06778071]
[1770737347143,3.87716714,84.169,84.125,10.7056]
[1770737347736,3.87716714,84.169,84.114,10.7071]
[1770737348437,3.87716714,84.199,84.122,4.06778071]
[1770737349444,3.87716714,84.199,84.138,4.06778071]
[1770737350445,3.87716714,84.197,84.142,10.7035]
[1770737350747,3.87716714,84.179,84.119,4.06778071]
[1770737350937,3.87716714,84.179,84.086,21.4213]
[1770737350938,9.68627201,84.16,84.087,4.06778071]
[1770737351742,9.68627201,84.16,84.112,10.7073]
[1770737352548,9.68627201,84.14,84.065,4.06778071]
[1770737352742,3.87716714,84.159,84.071,4.06778071]
[1770737352952,14.56045883,84.198,84.07,9.68627201]
[1770737352953,98.69716714,84.177,84.106,4.06778071]
[1770737353141,9.68627201,84.18,84.106,4.06778071]
[1770737353745,10.6989,84.179,84.124,10.7058]
[1770737353947,10.6989,84.179,84.07,9.68627201]
[1770737353948,3.87716714,84.195,84.111,4.06778071]
[1770737354142,35.66,84.236,84.111,4.06778071]
[1770737354143,3.87716714,84.176,84.112,10.7073]
[1770737354936,3.87716714,84.176,84.119,10.7064]
[1770737355141,94.84,84.191,84.12,4.06778071]
[1770737355936,94.84,84.191,84.128,4.06778071]
[1770737356348,3.87716714,84.208,84.128,4.06778071]
[1770737357853,3.87716714,84.207,84.145,10.7032]
[1770737361150,101.78,84.211,84.136,10.7043]
[1770737361151,3.87839587,84.189,84.136,10.7043]
[1770737361650,3.87839587,84.189,84.128,10.7053]
[1770737361849,3.72326734,84.187,84.128,10.7053]
[1770737362256,9.68627201,84.17,84.128,10.7053]
[1770737362846,9.68627201,84.17,84.135,10.7044]
[1770737364657,13.40953935,84.17,84.126,10.7056]
[1770737364855,3.72326734,84.169,84.108,3.8826397]
[1770737365054,3.72326734,84.169,84.085,3.8826397]
[1770737365254,3.72326734,84.169,84.101,3.8826397]
[1770737367759,3.72326734,84.169,84.113,10.7072]
[1770737367959,3.72326734,84.169,84.101,3.8826397]
[1770737368254,3.72326734,84.149,84.082,3.8826397]
[1770737368556,10.7006,84.166,84.113,10.7072]
[1770737369365,3.72326734,84.162,84.105,10.7082]
[1770737369962,3.72326734,84.162,84.112,10.7073]
[1770737370160,3.72326734,84.162,84.105,3.8826397]
[1770737371655,3.72326734,84.16,84.082,3.8826397]
[1770737371852,3.72326734,84.149,84.082,3.8826397]
[1770737372763,3.72326734,84.149,84.104,10.7083]
[1770737373458,94.86,84.162,84.11,10.7075]
[1770737373656,94.86,84.162,84.097,3.8826397]
[1770737374858,94.86,84.162,84.122,10.706]
[1770737375560,98.58326734,84.162,84.122,10.706]
[1770737375757,3.72326734,84.161,84.114,10.707]
[1770737376956,3.72326734,84.161,84.122,10.7061]
[1770737377667,3.72326734,84.161,84.097,3.8826397]
[1770737378067,3.72326734,84.161,84.132,10.7048]
[1770737378957,3.72326734,84.161,84.112,3.8826397]
[1770737378958,9.68627201,84.17,84.139,10.7039]
[1770737379266,94.86,84.169,84.112,3.8826397]
[1770737379461,3.72326734,84.168,84.131,10.7049]
[1770737380368,3.72326734,84.168,84.096,3.8826397]
[1770737380668,9.68627201,84.15,84.096,3.8826397]
[1770737381065,3.72326734,84.168,84.126,10.7055]
[1770737381369,3.72326734,84.168,84.076,3.8826397]
[1770737381869,3.72326734,84.165,84.097,3.8826397]
[1770737382667,9.68627201,84.15,84.106,10.708]
[1770737383454,9.68627201,84.15,84.097,3.8826397]
[1770737383455,9.68627201,84.15,84.112,10.7072]
[1770737383860,9.68627201,84.15,84.097,3.8826397]
[1770737384460,3.72326734,84.151,84.097,3.8826397]
[1770737384858,3.72326734,84.151,84.104,10.7083]
[1770737385363,3.72326734,84.151,84.097,3.8826397]
[1770737385560,3.72326734,84.151,84.117,10.7067]
[1770737385764,3.72326734,84.151,84.097,3.8826397]
[1770737385966,3.72326734,84.167,84.119,3.8826397]
[1770737387774,3.72326734,84.167,84.101,3.8826397]
[1770737388964,3.72326734,84.167,84.119,10.7064]
[1770737390166,3.72326734,84.167,84.126,10.7055]
[1770737390767,3.72326734,84.167,84.133,10.7046]
[1770737391176,3.72326734,84.167,84.115,3.96995723]
[1770737391562,9.68627201,84.17,84.131,10.7048]
[1770737393376,13.49164705,84.17,84.131,10.7048]
[1770737394277,3.80537504,84.169,84.131,10.7048]
[1770737395875,3.80537504,84.169,84.095,3.96995723]
[1770737396571,3.80537504,84.169,84.074,21.4242]